bitfinex/quotes_SOLUSD_20250617
["timestamp","ask_amount","ask_price","bid_price","bid_amount"]
[1750195022174,9.92225796,147.98,147.94,18.64964886]
[1750195022380,9.63170591,147.95,147.91,18.64964886]
[1750195022595,32.10676156,147.99,147.91,18.64964886]
[1750195022802,9.63170591,147.95,147.91,18.64964886]
[1750195023107,9.63170591,147.95,147.92,6.76041103]
[1750195023408,9.63170591,147.97,147.93,28.28135477]
[1750195023697,9.63170591,147.98,147.94,9.63170591]
[1750195024071,9.63170591,147.99,147.94,9.63170591]
[1750195024787,9.63170591,147.98,147.94,9.63170591]
[1750195024985,9.63170591,147.98,147.96,18.64964886]
[1750195025511,26.0,148.0,147.96,18.64964886]
[1750195025679,9.63170591,147.98,147.96,18.64964886]
[1750195026786,9.63170591,147.98,147.97,6.75812664]
[1750195027000,26.0,148.0,147.97,6.75812664]
[1750195027001,9.63170591,147.99,147.97,6.75812664]
[1750195027169,9.63170591,147.98,147.93,1.5468]
[1750195027372,9.63170591,147.98,147.94,25.40914595]
[1750195027587,26.0,147.97,147.91,18.64964886]
[1750195028203,30.97429084,147.97,147.91,18.64964886]
[1750195028384,26.0,147.95,147.91,18.64964886]
[1750195028709,9.63170591,147.92,147.91,25.41051695]
[1750195028872,9.63170591,147.92,147.85,6.4254]
[1750195029075,7.45817799,147.94,147.86,18.64964886]
[1750195029287,9.63170591,147.89,147.86,42.32068902]
[1750195029502,32.7593328,147.95,147.86,42.32068902]
[1750195029503,9.63170591,147.88,147.86,42.32068902]
[1750195029687,9.63170591,147.89,147.86,42.32068902]
[1750195030091,9.63170591,147.87,147.86,25.41280319]
[1750195032396,26.0,147.91,147.86,25.41280319]
[1750195032599,9.63170591,147.89,147.86,25.41280319]
[1750195032807,26.0,147.91,147.87,18.64964886]
[1750195032979,9.63170591,147.89,147.86,25.41280319]
[1750195033610,26.0,147.91,147.86,42.32068902]
[1750195033786,9.63170591,147.89,147.86,42.32068902]
[1750195035112,26.0,147.93,147.87,18.64964886]
[1750195035408,9.63170591,147.9,147.87,18.64964886]
[1750195035596,9.63170591,147.89,147.87,18.64964886]
[1750195035792,26.0,147.93,147.87,18.64964886]
[1750195035793,9.63170591,147.91,147.87,18.64964886]
[1750195036499,9.63170591,147.91,147.89,18.64964886]
[1750195037388,9.63170591,147.91,147.9,6.76132521]
[1750195038624,9.63170591,147.91,147.89,18.64964886]
[1750195038789,0.42648471,147.97,147.89,28.28135477]
[1750195038790,19.29854924,147.97,147.89,28.28135477]
[1750195038994,9.63170591,147.93,147.89,28.28135477]
[1750195039195,9.63170591,147.92,147.89,18.64964886]
[1750195039419,9.63170591,147.9,147.89,18.64964886]
[1750195039728,9.63170591,147.9,147.88,6.76223965]
[1750195040889,9.63170591,147.89,147.88,25.41188851]
[1750195041197,9.63170591,147.9,147.88,6.76223965]
[1750195041819,9.63170591,147.92,147.88,23.66783878]
[1750195042111,26.0,147.94,147.89,18.64964886]
[1750195042112,9.63170591,147.93,147.89,18.64964886]
[1750195042709,9.63170591,147.93,147.9,6.76132521]
[1750195043388,9.63170591,147.92,147.9,6.76132521]
[1750195043585,9.63170591,147.91,147.9,6.76132521]
[1750195045008,9.63170591,147.91,147.88,23.66783878]
[1750195045211,9.63170591,147.9,147.88,23.66783878]
[1750195045402,9.63170591,147.91,147.88,23.66783878]
[1750195045601,26.0,147.94,147.88,23.66783878]
[1750195045602,9.63170591,147.92,147.88,23.66783878]
[1750195045823,9.63170591,147.91,147.88,23.66783878]
[1750195047026,26.0,147.94,147.89,18.64964886]
[1750195047224,9.63170591,147.92,147.89,18.64964886]
[1750195047429,9.63170591,147.93,147.89,18.64964886]
[1750195049024,9.63170591,147.93,147.9,23.66463825]
[1750195049525,9.63170591,147.95,147.91,18.64964886]
[1750195050022,1.79176157,147.99,147.91,18.64964886]
[1750195050332,9.63170591,147.96,147.91,28.28135477]
[1750195050625,9.63170591,147.97,147.93,18.64964886]
[1750195051235,9.63170591,147.97,147.95,18.64964886]
[1750195051407,9.63170591,147.96,147.94,6.75949709]
[1750195051611,9.63170591,147.95,147.94,6.75949709]
[1750195053033,9.63170591,147.95,147.89,16.90431775]
[1750195053199,9.63170591,147.91,147.9,18.64964886]
[1750195053400,9.63170591,147.91,147.9,25.41097407]
[1750195054742,9.63170591,147.92,147.9,25.41097407]
[1750195054921,16.47047839,147.92,147.9,25.41097407]
[1750195055122,16.47047839,147.91,147.9,25.41097407]
[1750195055633,16.47047839,147.92,147.9,25.41097407]
[1750195055839,49.22913521,147.96,147.9,25.41097407]
[1750195055840,16.47047839,147.91,147.9,25.41097407]
[1750195056207,16.47047839,147.92,147.9,25.41097407]
[1750195057137,16.47047839,147.91,147.9,25.41097407]
[1750195057340,16.47047839,147.92,147.9,25.41097407]
[1750195057513,16.47047839,147.91,147.9,25.41097407]
[1750195058540,16.47047839,147.91,147.89,6.76156338]
[1750195058731,16.47047839,147.9,147.89,25.41121224]
[1750195058931,16.47047839,147.91,147.89,25.41121224]
[1750195060531,26.0,147.96,147.91,6.76086809]
[1750195060851,16.47047839,147.94,147.91,6.76086809]
[1750195067754,16.47047839,147.92,147.91,25.41051695]
[1750195071046,16.47047839,147.92,147.9,6.76132521]
[1750195071365,16.47047839,147.91,147.9,25.41097407]
[1750195071746,16.47047839,147.92,147.9,25.41097407]
[1750195072247,26.0,147.94,147.9,25.41097407]
[1750195072445,16.47047839,147.93,147.91,18.64964886]
[1750195073634,16.47047839,147.93,147.92,6.76041103]
[1750195074952,16.47047839,147.93,147.91,6.76086809]
[1750195075831,16.47047839,147.93,147.89,42.3148268]
[1750195076238,16.47047839,147.95,147.91,16.47047839]
[1750195076738,23.96548389,147.98,147.93,35.12012725]
[1750195076960,8.04511981,147.99,147.96,18.64964886]
[1750195077134,8.04511981,147.99,147.96,9.59854075]
[1750195077467,8.04511981,147.99,147.98,9.59854075]
[1750195077638,8.04511981,147.99,147.98,28.24818961]
[1750195077851,8.04511981,147.99,147.98,35.00585956]
[1750195078060,14.59292848,148.03,147.99,18.64964886]
[1750195078246,14.59292848,148.03,147.98,16.3562107]
[1750195078444,6.94888037,148.08,148.01,18.64964886]
[1750195078758,9.59854075,148.04,147.99,18.64964886]
[1750195078955,4.59854075,148.04,148.01,18.64964886]
[1750195079553,4.59854075,148.04,148.02,6.7558438]
[1750195080073,7.83055724,148.11,148.03,18.64964886]
[1750195080253,9.59854075,148.09,148.05,18.64964886]
[1750195080448,14.59241589,148.08,148.05,18.64964886]
[1750195080652,9.59854075,148.06,148.04,18.64964886]
[1750195080844,40.58234059,148.11,148.03,18.64964886]
[1750195080845,9.59854075,148.05,148.03,18.64964886]
[1750195081045,9.59854075,148.04,148.03,18.64964886]
[1750195081376,9.59854075,148.04,148.01,18.64964886]
[1750195081673,9.59854075,148.05,148.02,6.7558438]
[1750195082353,9.59854075,148.03,147.98,1.6227]
[1750195082556,9.59854075,147.99,147.95,18.64964886]
[1750195082765,9.59854075,147.96,147.94,25.23078416]
[1750195083074,9.59854075,147.97,147.95,18.64964886]
[1750195083277,9.59854075,147.98,147.95,18.64964886]
[1750195083454,9.59854075,147.98,147.95,25.40868907]
[1750195084643,9.59854075,147.97,147.95,25.40868907]
[1750195084844,16.45841077,147.97,147.95,25.40868907]
[1750195085946,16.45841077,147.96,147.91,16.90115713]
[1750195086151,16.45841077,147.94,147.92,18.64964886]
[1750195087075,16.45841077,147.94,147.92,25.41005989]
[1750195087268,16.45841077,147.93,147.92,25.41005989]
[1750195089579,11.7411943,147.98,147.92,25.41005989]
[1750195089787,16.45841077,147.93,147.92,25.41005989]
[1750195090277,11.7411943,147.98,147.92,25.41005989]
[1750195090464,16.45841077,147.94,147.92,25.41005989]
[1750195091276,16.45841077,147.93,147.92,25.41005989]
[1750195091662,16.45841077,147.94,147.92,25.41005989]
[1750195093053,16.45841077,147.93,147.92,25.41005989]
[1750195093870,16.45841077,147.94,147.92,25.41005989]
[1750195094382,16.45841077,147.93,147.92,25.41005989]
[1750195094551,16.45841077,147.93,147.92,6.76041103]
[1750195094758,16.45841077,147.93,147.91,6.7607801]
[1750195094964,16.45841077,147.92,147.9,25.41097407]
[1750195095158,16.45841077,147.91,147.9,25.41097407]
[1750195095767,16.45841077,147.92,147.9,25.41097407]
[1750195097166,16.45841077,147.91,147.9,25.41097407]
[1750195098060,16.45841077,147.91,147.9,6.76132521]
[1750195099282,16.45841077,147.91,147.88,25.41168333]
[1750195099483,16.45841077,147.92,147.88,25.41168333]
[1750195099698,16.45841077,147.92,147.88,41.8700941]
[1750195100077,16.45841077,147.93,147.88,41.8700941]
[1750195100469,16.45841077,147.93,147.88,58.77569323]
[1750195100991,16.45841077,147.93,147.89,16.45841077]
[1750195101295,16.45841077,147.93,147.89,13.95841077]
[1750195101492,16.45841077,147.92,147.88,42.31728246]
[1750195101796,16.45841077,147.89,147.88,25.41168333]
[1750195102181,16.45841077,147.91,147.88,25.41168333]
[1750195102964,16.45841077,147.9,147.88,25.41168333]
[1750195104583,26.0,147.93,147.88,25.41168333]
[1750195104889,13.39946534,147.95,147.88,25.41168333]
[1750195105074,26.0,147.92,147.88,25.41168333]
[1750195105772,13.39946534,147.95,147.88,25.41168333]
[1750195105773,27.6637,147.95,147.88,25.41168333]
[1750195105983,26.0,147.93,147.88,25.41168333]
[1750195106299,26.0,147.93,147.88,35.02134138]
[1750195106486,26.0,147.93,147.88,51.92694051]
[1750195107302,26.0,147.93,147.88,42.31728246]
[1750195109202,9.60965805,147.94,147.91,18.64964886]
[1750195109881,26.0,147.95,147.91,18.64964886]
[1750195110082,9.60965805,147.94,147.91,18.64964886]
[1750195110284,9.60965805,147.94,147.92,6.76041103]
[1750195110803,26.0,147.95,147.92,6.76041103]
[1750195110991,35.60965805,147.95,147.92,6.76041103]
[1750195111986,9.60965805,147.94,147.92,6.76041103]
[1750195113789,35.60965805,147.95,147.92,6.76041103]
[1750195114010,9.60965805,147.95,147.92,6.76041103]
[1750195115508,9.60965805,147.94,147.92,6.76041103]
[1750195117118,9.60965805,147.95,147.92,6.76041103]
[1750195120496,9.60965805,147.96,147.92,6.76041103]
[1750195122417,9.60965805,147.97,147.93,18.64964886]
[1750195122614,9.60965805,147.95,147.93,18.64964886]
[1750195123217,9.60965805,147.95,147.94,6.75949709]
[1750195124490,9.60965805,147.96,147.94,6.75949709]
[1750195125213,157.50965805,147.98,147.94,6.75949709]
[1750195125406,9.60965805,147.97,147.94,6.75949709]
[1750195125603,26.0,147.99,147.94,6.75949709]
[1750195125946,9.60965805,147.96,147.94,6.75949709]
[1750195126612,9.60965805,147.95,147.94,6.75949709]
[1750195127190,9.60965805,147.96,147.94,6.75949709]
[1750195128122,9.60965805,147.95,147.94,6.75949709]
[1750195129616,14.60006331,147.95,147.92,18.64964886]
[1750195129827,9.60965805,147.94,147.93,6.75995403]
[1750195130502,14.60159692,147.94,147.93,6.75995403]
[1750195131133,14.60174648,147.94,147.93,6.75995403]
[1750195131802,14.60174648,147.94,147.88,16.90538271]
[1750195132002,9.60965805,147.98,147.89,6.7617824]
[1750195132003,9.60965805,147.9,147.89,6.7617824]
[1750195132221,9.60965805,147.9,147.88,6.76210006]
[1750195133935,9.60965805,147.89,147.88,25.41174892]
[1750195134734,9.60965805,147.9,147.88,25.41174892]
[1750195134909,9.60965805,147.89,147.88,25.41174892]
[1750195135532,9.60965805,147.89,147.88,6.76210006]
[1750195136034,9.60965805,147.89,147.87,25.41213435]
[1750195136235,7.48053886,147.92,147.87,25.41213435]
[1750195136415,12.46514588,147.91,147.87,25.41213435]
[1750195136730,9.60965805,147.88,147.87,25.41213435]
[1750195137518,16.37193643,147.88,147.83,1.5185]
[1750195137721,9.60965805,147.84,147.81,6.2836]
[1750195137907,9.60965805,147.83,147.82,18.64964886]
[1750195139306,9.60965805,147.83,147.78,6.2836]
[1750195139538,9.60965805,147.79,147.75,8.2351]
[1750195139734,9.60965805,147.79,147.76,18.64964886]
[1750195140409,9.60965805,147.78,147.76,25.41738031]
[1750195140614,9.60965805,147.77,147.75,6.7]
[1750195140816,9.60965805,147.78,147.76,6.76773145]
[1750195141033,9.60965805,147.78,147.75,6.7]
[1750195141034,9.60965805,147.77,147.75,6.7]
[1750195141335,9.60965805,147.77,147.72,28.9]
[1750195141336,9.60965805,147.76,147.73,6.76893097]
[1750195141542,9.60965805,147.75,147.73,6.76893097]
[1750195142609,9.60965805,147.76,147.73,6.76893097]
[1750195143023,9.60965805,147.8,147.76,18.64964886]
[1750195143241,14.6085,147.87,147.78,18.64964886]
[1750195143435,23.66301705,147.87,147.77,18.64964886]
[1750195143742,23.66301705,147.87,147.77,28.25930691]
[1750195143743,9.60965805,147.81,147.77,28.25930691]
[1750195143931,9.60965805,147.82,147.77,28.25930691]
[1750195144239,9.60965805,147.82,147.78,6.76681553]
[1750195144842,9.60965805,147.82,147.78,16.37647358]
[1750195145134,9.60965805,147.81,147.78,6.76681553]
[1750195146513,26.0,147.85,147.78,6.76681553]
[1750195146514,9.60965805,147.82,147.78,16.37647358]
[1750195146714,9.60965805,147.81,147.78,6.76681553]
[1750195147643,9.60965805,147.81,147.77,25.41692232]
[1750195147943,9.60965805,147.81,147.77,35.02658037]
[1750195149619,9.60965805,147.78,147.76,18.64964886]
[1750195149817,9.60965805,147.77,147.76,18.64964886]
[1750195150226,9.60965805,147.79,147.76,18.64964886]
[1750195150551,9.60965805,147.83,147.78,9.60965805]
[1750195150734,9.60965805,147.86,147.83,6.76452682]
[1750195151132,9.60965805,147.84,147.82,6.76486149]
[1750195151736,1.5085,147.87,147.82,6.76486149]
[1750195151938,26.0,147.87,147.82,6.76486149]
[1750195152132,9.60965805,147.85,147.82,6.76486149]
[1750195153916,9.60965805,147.84,147.82,6.76486149]
[1750195154325,9.60965805,147.85,147.82,18.64964886]
[1750195155319,26.0,147.87,147.82,18.64964886]
[1750195155320,9.60965805,147.86,147.82,18.64964886]
[1750195155646,9.60965805,147.85,147.82,18.64964886]
[1750195155842,9.60965805,147.85,147.83,6.76452682]
[1750195156653,26.0,147.87,147.83,6.76452682]
[1750195156822,9.60965805,147.85,147.83,6.76452682]
[1750195157245,26.0,147.87,147.83,6.76452682]
[1750195157552,9.60965805,147.85,147.83,6.76452682]
[1750195157922,26.0,147.87,147.83,6.76452682]
[1750195158123,9.60965805,147.84,147.83,6.76452682]
[1750195158954,9.60965805,147.85,147.83,6.76452682]
[1750195160139,9.60965805,147.84,147.83,6.76452682]
[1750195162255,9.60965805,147.85,147.83,6.76452682]
[1750195163759,9.60965805,147.84,147.83,6.76452682]
[1750195166051,9.60965805,147.86,147.83,6.76452682]
[1750195166258,9.60965805,147.85,147.83,6.76452682]
[1750195167049,9.60965805,147.86,147.83,6.76452682]
[1750195167873,9.60965805,147.86,147.83,23.67584387]
[1750195168079,9.60965805,147.86,147.85,6.76361176]
[1750195168242,9.60965805,147.86,147.8,6.76589986]
[1750195168444,26.0,147.86,147.8,6.76589986]
[1750195168754,9.60965805,147.84,147.8,6.76589986]
[1750195169342,9.60965805,147.84,147.8,16.37555791]
[1750195169542,9.60965805,147.84,147.8,23.68064952]
[1750195169742,9.60965805,147.83,147.81,18.64964886]
[1750195170156,9.60965805,147.82,147.79,18.64964886]
[1750195170359,9.60965805,147.8,147.78,18.64964886]
[1750195170552,9.60965805,147.79,147.78,18.64964886]
[1750195171167,9.60965805,147.79,147.78,25.41633177]
[1750195171652,9.60965805,147.8,147.78,25.41633177]
[1750195172746,9.60965805,147.79,147.78,25.41633177]
[1750195175057,9.60965805,147.8,147.78,25.41633177]
[1750195175256,9.60965805,147.79,147.78,25.41633177]
[1750195175467,4.95909293,147.83,147.78,25.41633177]
[1750195175668,9.60965805,147.8,147.78,25.41633177]
[1750195176769,9.60965805,147.81,147.78,42.33337061]
[1750195177676,9.60965805,147.8,147.78,42.33337061]
[1750195178572,9.60965805,147.81,147.78,42.33337061]
[1750195180755,9.60965805,147.8,147.78,42.33337061]
[1750195180956,9.60965805,147.8,147.78,25.41633177]
[1750195181157,9.60965805,147.79,147.78,6.76668291]
[1750195182960,9.60965805,147.79,147.77,13.4070758]
[1750195183162,9.60965805,147.78,147.77,13.4070758]
[1750195183362,11.74098953,147.82,147.77,6.7670758]
[1750195183558,9.60965805,147.78,147.77,6.7670758]
[1750195184276,9.60965805,147.78,147.76,25.41716981]
[1750195184575,14.22821717,147.81,147.76,25.41716981]
[1750195184576,9.60965805,147.77,147.76,25.41716981]
[1750195188273,9.60965805,147.77,147.76,6.76752095]
[1750195188474,9.60965805,147.77,147.72,42.24965805]
[1750195188475,9.60965805,147.77,147.73,25.41875466]
[1750195188679,9.60965805,147.81,147.76,9.60965805]
[1750195188984,24.38443308,147.85,147.81,18.64964886]
[1750195188985,20.94960759,147.85,147.81,18.64964886]
[1750195189194,11.33994954,147.85,147.83,18.64964886]
[1750195189491,11.33994954,147.85,147.83,28.25930691]
[1750195189786,11.33994954,147.85,147.83,18.64964886]
[1750195190154,24.19878978,147.84,147.78,18.64964886]
[1750195190358,11.33994954,147.85,147.79,6.76635766]
[1750195190553,9.60965805,147.83,147.79,6.76635766]
[1750195191472,9.60965805,147.84,147.79,16.37601571]
[1750195191783,9.60965805,147.84,147.81,18.64964886]
[1750195191969,9.60965805,147.84,147.79,16.37601571]
[1750195192170,9.60965805,147.83,147.79,6.76635766]
[1750195193183,9.60965805,147.82,147.79,6.76635766]
[1750195194573,9.60965805,147.81,147.79,6.76635766]
[1750195197899,9.60965805,147.8,147.79,6.76635766]
[1750195200486,9.60965805,147.8,147.79,25.41600652]
[1750195200793,14.59661426,147.8,147.74,6.76864762]
[1750195201029,9.60965805,147.75,147.74,6.76864762]
[1750195201163,9.60965805,147.75,147.72,18.64964886]
[1750195201366,9.60965805,147.73,147.71,6.58]
[1750195201583,9.60965805,147.72,147.71,13.35002234]
[1750195201898,9.60965805,147.72,147.71,25.22964886]
[1750195202102,9.60965805,147.72,147.69,6.77093912]
[1750195202393,9.60965805,147.72,147.68,55.29973653]
[1750195202394,4.97805914,147.76,147.7,6.77040233]
[1750195202594,7.46708872,147.75,147.7,6.77040233]
[1750195202818,4.97805914,147.74,147.67,6.77185616]
[1750195203104,4.97805914,147.73,147.68,18.64964886]
[1750195203392,26.0,147.72,147.67,6.77185616]
[1750195203580,9.60965805,147.68,147.67,25.42150502]
[1750195204296,9.60965805,147.68,147.65,6.77277345]
[1750195204495,9.60965805,147.66,147.65,6.77277345]
[1750195204695,9.60965805,147.66,147.64,6.77312307]
[1750195204912,9.60965805,147.65,147.62,6.77370099]
[1750195205093,9.60965805,147.63,147.62,6.77370099]
[1750195205286,9.60965805,147.63,147.58,42.18965805]
[1750195205287,9.60965805,147.63,147.6,6.77506775]
[1750195205487,9.60965805,147.61,147.6,6.77506775]
[1750195205698,26.0,147.68,147.6,25.42471661]
[1750195205699,9.60965805,147.62,147.6,25.42471661]
[1750195206114,9.60965805,147.61,147.6,25.42471661]
[1750195206705,9.60965805,147.61,147.58,13.35591282]
[1750195206884,10.34394029,147.62,147.58,13.35591282]
[1750195207086,45.2193161,147.59,147.54,1.329036]
[1750195207395,9.60965805,147.55,147.54,1.329036]
[1750195207703,26.0,147.52,147.45,23.73685994]
[1750195207899,9.60965805,147.47,147.45,23.73685994]
[1750195208089,9.60965805,147.48,147.45,23.73685994]
[1750195208601,15.61655805,147.56,147.45,6.78195998]
[1750195208602,9.60965805,147.47,147.45,6.78195998]
[1750195209210,6.77885717,147.52,147.43,6.78288001]
[1750195209211,0.14216157,147.51,147.43,6.78288001]
[1750195209513,9.60965805,147.49,147.43,6.78288001]
[1750195209708,9.60965805,147.44,147.43,25.43252887]
[1750195209903,9.60965805,147.44,147.43,18.64964886]
[1750195210103,9.60965805,147.44,147.42,6.78321015]
[1750195210296,35.60965805,147.49,147.42,6.78321015]
[1750195210297,9.60965805,147.43,147.42,6.78321015]
[1750195210696,26.0,147.46,147.43,18.64964886]
[1750195210900,16.57957397,147.44,147.4,6.78426051]
[1750195211131,16.57957397,147.42,147.41,18.64964886]
[1750195211899,16.57957397,147.42,147.35,22.40911976]
[1750195212110,10.12064991,147.45,147.35,22.40911976]
[1750195212111,16.57957397,147.38,147.35,22.40911976]
[1750195212293,16.90278444,147.45,147.36,6.78610206]
[1750195212619,16.57957397,147.39,147.37,18.64964886]
[1750195212812,16.57957397,147.38,147.37,18.64964886]
[1750195213201,16.57957397,147.38,147.36,6.78610206]
[1750195213510,16.57957397,147.37,147.36,6.78610206]
[1750195213910,16.57957397,147.37,147.36,25.43575092]
[1750195214089,16.57957397,147.42,147.36,25.43575092]
[1750195214290,16.57957397,147.37,147.36,25.43575092]
[1750195214518,16.57957397,147.37,147.36,6.78610206]
[1750195214731,16.57957397,147.42,147.36,6.78610206]
[1750195214894,16.57957397,147.37,147.36,6.78610206]
[1750195216928,26.0,147.42,147.36,6.78610206]
[1750195217106,16.57957397,147.37,147.36,6.78610206]
[1750195217293,16.57957397,147.37,147.35,5.44353303]
[1750195217497,42.57957397,147.42,147.35,12.23002847]
[1750195218030,16.57957397,147.36,147.35,5.44353303]
[1750195218722,26.42648471,147.38,147.28,6.78978815]
[1750195218924,16.57957397,147.31,147.28,6.78978815]
[1750195219127,16.57957397,147.3,147.28,6.78978815]
[1750195219624,16.57957397,147.31,147.28,6.78978815]
[1750195219828,16.57957397,147.31,147.28,42.4139074]
[1750195220225,16.57957397,147.31,147.28,23.76425854]
[1750195220536,16.57957397,147.31,147.28,16.97447039]
[1750195221214,32.78566529,147.37,147.28,16.97447039]
[1750195221409,16.57957397,147.31,147.28,16.97447039]
[1750195221828,16.57957397,147.3,147.28,16.97447039]
[1750195222029,32.78566529,147.37,147.27,6.7902492]
[1750195222030,16.57957397,147.29,147.27,6.7902492]
[1750195222448,16.57957397,147.29,147.26,6.7907103]
[1750195224511,16.57957397,147.33,147.26,6.7907103]
[1750195225105,6.78672309,147.35,147.26,23.76748607]
[1750195225316,6.78617848,147.36,147.27,18.64964886]
[1750195225523,16.57957397,147.3,147.26,23.76748607]
[1750195225722,16.57957397,147.29,147.26,23.76748607]
[1750195225913,16.57957397,147.3,147.26,23.76748607]
[1750195228025,16.57957397,147.31,147.27,35.22922283]
[1750195228227,16.57957397,147.32,147.27,35.22922283]
[1750195228716,16.57957397,147.32,147.28,23.76425854]
[1750195228916,26.0,147.36,147.29,35.22922283]
[1750195229136,16.57957397,147.34,147.29,35.22922283]
[1750195229428,16.57957397,147.34,147.3,16.57957397]
[1750195229936,16.57957397,147.35,147.3,16.57957397]
[1750195230140,16.57957397,147.35,147.31,16.57957397]
[1750195230552,8.0339,147.41,147.32,16.57957397]
[1750195230733,16.57957397,147.37,147.33,23.36705784]
[1750195231243,16.57957397,147.38,147.33,40.33576753]
[1750195232111,16.57957397,147.38,147.34,16.57957397]
[1750195232511,16.57957397,147.38,147.35,6.7865626]
[1750195232742,16.57957397,147.37,147.35,6.7865626]
[1750195235121,16.57957397,147.37,147.33,23.75619356]
[1750195235528,16.57957397,147.37,147.33,40.33576753]
[1750195235730,16.57957397,147.37,147.33,23.75619356]
[1750195236255,16.57957397,147.37,147.33,40.33576753]
[1750195237120,16.57957397,147.37,147.33,16.96870969]
[1750195237352,6.4466,147.41,147.33,33.54828366]
[1750195237526,16.57957397,147.38,147.33,33.54828366]
[1750195239042,30.94503723,147.45,147.33,33.54828366]
[1750195239043,16.57957397,147.41,147.36,16.96480008]
[1750195239349,16.57957397,147.4,147.36,33.54437405]
[1750195239531,16.49754991,147.45,147.38,16.57957397]
[1750195239739,16.57957397,147.44,147.39,16.57957397]
[1750195239932,26.70022388,147.45,147.41,16.57957397]
[1750195240245,10.12064991,147.45,147.41,16.57957397]
[1750195240432,10.12064991,147.45,147.42,16.57957397]
[1750195240752,10.12064991,147.45,147.43,16.57957397]
[1750195241122,10.12064991,147.45,147.44,6.78241996]
[1750195241328,3.52909385,147.53,147.45,10.0]
[1750195241534,16.57957397,147.62,147.53,18.64964886]
[1750195241724,6.4481,147.65,147.58,16.57957397]
[1750195241934,16.57957397,147.59,147.51,37.56357002]
[1750195242146,16.57957397,147.54,147.51,6.64]
[1750195242361,26.0,147.62,147.52,18.64964886]
[1750195242561,16.57957397,147.56,147.52,35.22922283]
[1750195242861,16.57957397,147.56,147.52,18.64964886]
[1750195243044,16.57957397,147.56,147.52,35.22922283]
[1750195243444,16.57957397,147.57,147.53,6.77828238]
[1750195245473,16.57957397,147.56,147.53,6.77828238]
[1750195245641,16.57957397,147.57,147.53,6.77828238]
[1750195245841,16.57957397,147.58,147.53,23.35785635]
[1750195246041,16.57957397,147.57,147.53,6.77828238]
[1750195247941,6.91585255,147.63,147.53,23.35785635]
[1750195248146,16.57957397,147.57,147.53,6.77828238]
[1750195250243,16.57957397,147.57,147.53,23.35785635]
[1750195250443,16.57957397,147.58,147.53,23.35785635]
[1750195252069,16.57957397,147.59,147.55,16.57957397]
[1750195252553,16.57957397,147.59,147.56,6.77690431]
[1750195254065,32.77447711,147.62,147.56,6.77690431]
[1750195254066,16.57957397,147.6,147.56,6.77690431]
[1750195254272,16.57957397,147.59,147.56,6.77690431]
[1750195256477,16.57957397,147.59,147.55,16.57957397]
[1750195257273,32.77417467,147.62,147.55,16.57957397]
[1750195257458,16.57957397,147.59,147.56,6.77690431]
[1750195258357,16.57957397,147.59,147.55,6.7773636]
[1750195258973,32.77417467,147.62,147.55,6.7773636]
[1750195259176,16.57957397,147.59,147.55,23.35693757]
[1750195259472,16.57957397,147.59,147.55,6.7773636]
[1750195259865,16.57957397,147.59,147.55,23.35693757]
[1750195261103,16.57957397,147.59,147.55,6.7773636]
[1750195263390,16.57957397,147.58,147.55,6.7773636]
[1750195263682,16.57957397,147.57,147.55,6.7773636]
[1750195263980,16.57957397,147.58,147.55,6.7773636]
[1750195264355,16.57957397,147.57,147.55,6.7773636]
[1750195264563,16.57957397,147.57,147.54,6.77782296]
[1750195264978,16.57957397,147.58,147.54,6.77782296]
[1750195268191,24.13279735,147.64,147.54,6.77782296]
[1750195268358,16.57957397,147.59,147.54,23.35739693]
[1750195270086,16.57957397,147.59,147.54,6.77782296]
[1750195270895,9.65246515,147.59,147.54,6.77782296]
[1750195271083,9.65246515,147.58,147.54,6.77782296]
[1750195276294,6.77496131,147.61,147.54,6.77782296]
[1750195276801,9.65246515,147.59,147.54,16.43028811]
[1750195277304,0.14216157,147.64,147.56,9.65246515]
[1750195277594,0.14216157,147.64,147.54,23.72238036]
[1750195277595,9.65246515,147.62,147.57,9.65246515]
[1750195277974,9.65246515,147.62,147.58,9.65246515]
[1750195278179,9.65246515,147.63,147.58,9.65246515]
[1750195278598,9.65246515,147.63,147.59,9.65246515]
[1750195279096,9.65246515,147.64,147.59,9.65246515]
[1750195279273,9.65246515,147.65,147.61,6.77460876]
[1750195279995,9.65246515,147.65,147.61,33.36359582]
[1750195280588,9.65246515,147.66,147.61,33.36359582]
[1750195281394,9.65246515,147.67,147.62,9.65246515]
[1750195281780,9.65246515,147.67,147.63,9.65246515]
[1750195282008,9.65246515,147.67,147.62,28.30211401]
[1750195283508,9.65246515,147.67,147.63,6.77369098]
[1750195285814,9.65246515,147.67,147.63,33.36038359]
[1750195286014,9.65246515,147.68,147.63,33.36038359]
[1750195287786,9.65246515,147.67,147.63,6.77369098]
[1750195289219,9.65246515,147.66,147.63,6.77369098]
[1750195289405,9.65246515,147.64,147.59,6.56]
[1750195289719,9.65246515,147.62,147.59,6.56]
[1750195290090,9.65246515,147.61,147.59,13.33534534]
[1750195290923,9.65246515,147.61,147.59,6.77534534]
[1750195291091,9.65246515,147.62,147.59,6.77534534]
[1750195292020,9.65246515,147.61,147.57,6.77644507]